[Event "Titled Tuesday Blitz June 21 Late 2022"]
[White "Martinez Reyes, Pedro Ramon"]
[Black "Kanyamarala, Trisha"]
[WhiteFideId "3901807"]
[BlackFideId "45004722"]
[WhiteElo "2410"]
[BlackElo "2134"]
[Result "1-0"]
[Round "03"]
[TimeControl "180+1"]
[Date "2022.06.22"]
[WhiteClock "0:01:22"]
[BlackClock "0:00:01"]

1. d3 {[%clk 0:03:00]}  d5 {[%clk 0:02:55]} 2. e4 {[%clk 0:03:01]}  dxe4 {[%clk 0:02:51]} 3. dxe4 {[%clk 0:03:02]}  Qxd1+ {[%clk 0:02:51]} 4. Kxd1 {[%clk 0:03:03]}  e5 {[%clk 0:02:49]} 5. c3 {[%clk 0:03:03]}  Bc5 {[%clk 0:02:46]} 6. f3 {[%clk 0:02:49]}  Nf6 {[%clk 0:02:44]} 7. Bc4 {[%clk 0:02:47]}  O-O {[%clk 0:02:42]} 8. Ne2 {[%clk 0:02:47]}  Rd8+ {[%clk 0:02:41]} 9. Kc2 {[%clk 0:02:47]}  a6 {[%clk 0:02:38]} 10. a4 {[%clk 0:02:45]}  Nc6 {[%clk 0:02:36]} 11. Bg5 {[%clk 0:02:45]}  Be7 {[%clk 0:02:33]} 12. Nd2 {[%clk 0:02:37]}  Bd7 {[%clk 0:02:30]} 13. Nb3 {[%clk 0:02:32]}  b5 {[%clk 0:02:19]} 14. axb5 {[%clk 0:02:27]}  axb5 {[%clk 0:02:19]} 15. Bd3 {[%clk 0:02:25]}  b4 {[%clk 0:02:12]} 16. Bc4 {[%clk 0:02:17]}  bxc3 {[%clk 0:02:03]} 17. bxc3 {[%clk 0:02:17]}  h6 {[%clk 0:01:57]} 18. Be3 {[%clk 0:02:17]}  Ne8 {[%clk 0:01:54]} 19. Rhd1 {[%clk 0:02:07]}  Nd6 {[%clk 0:01:52]} 20. Bd5 {[%clk 0:02:07]}  Rab8 {[%clk 0:01:48]} 21. Ra6 {[%clk 0:02:03]}  Nb5 {[%clk 0:00:55]} 22. Nc5 {[%clk 0:01:50]}  Bxc5 {[%clk 0:00:12]} 23. Bxc5 {[%clk 0:01:51]}  Ra8 {[%clk 0:00:05]} 24. Rda1 {[%clk 0:01:50]}  Rxa6 {[%clk 0:00:04]} 25. Rxa6 {[%clk 0:01:51]}  Nb8 {[%clk 0:00:05]} 26. Ra5 {[%clk 0:01:49]}  c6 {[%clk 0:00:04]} 27. Bc4 {[%clk 0:01:49]}  Nc7 {[%clk 0:00:04]} 28. Bd6 {[%clk 0:01:46]}  Ne6 {[%clk 0:00:04]} 29. Bxe5 {[%clk 0:01:46]}  Rc8 {[%clk 0:00:03]} 30. Nd4 {[%clk 0:01:45]}  c5 {[%clk 0:00:03]} 31. Nf5 {[%clk 0:01:45]}  Nc6 {[%clk 0:00:02]} 32. Ra3 {[%clk 0:01:37]}  Nxe5 {[%clk 0:00:03]} 33. Ne7+ {[%clk 0:01:37]}  Kf8 {[%clk 0:00:03]} 34. Nxc8 {[%clk 0:01:38]}  Bxc8 {[%clk 0:00:04]} 35. Bd5 {[%clk 0:01:36]}  Bd7 {[%clk 0:00:04]} 36. Ra7 {[%clk 0:01:34]}  Nf4 {[%clk 0:00:04]} 37. g3 {[%clk 0:01:29]}  Nxd5 {[%clk 0:00:03]} 38. exd5 {[%clk 0:01:30]}  Bf5+ {[%clk 0:00:04]} 39. Kb3 {[%clk 0:01:27]}  Nxf3 {[%clk 0:00:04]} 40. Kc4 {[%clk 0:01:27]}  Nd2+ {[%clk 0:00:04]} 41. Kxc5 {[%clk 0:01:27]}  Ne4+ {[%clk 0:00:04]} 42. Kd4 {[%clk 0:01:27]}  Nd2 {[%clk 0:00:05]} 43. c4 {[%clk 0:01:27]}  Nb3+ {[%clk 0:00:04]} 44. Ke5 {[%clk 0:01:28]}  g6 {[%clk 0:00:04]} 45. Kf6 {[%clk 0:01:28]}  Ke8 {[%clk 0:00:02]} 46. Rc7 {[%clk 0:01:24]}  Nd4 {[%clk 0:00:01]} 47. Re7+ {[%clk 0:01:23]}  Kd8 {[%clk 0:00:01]} 48. Rxf7 {[%clk 0:01:23]}  Ne2 {[%clk 0:00:01]} 49. Ra7 {[%clk 0:01:22]} 1-0


[Site "https://www.chess.com"]

[Event "Titled Tuesday Blitz June 21 Late 2022"]
[White "Mei, Austin"]
[Black "Petrovic, Aleksa"]
[WhiteFideId "30948479"]
[BlackFideId "967629"]
[WhiteElo "1936"]
[BlackElo "2117"]
[Result "0-1"]
[Round "03"]
[TimeControl "180+1"]
[Date "2022.06.22"]
[WhiteClock "0:00:11"]
[BlackClock "0:00:07"]

1. e4 {[%clk 0:03:00]}  e6 {[%clk 0:02:59]} 2. d4 {[%clk 0:03:00]}  d5 {[%clk 0:02:59]} 3. e5 {[%clk 0:03:01]}  c5 {[%clk 0:02:58]} 4. c3 {[%clk 0:03:01]}  Qb6 {[%clk 0:02:59]} 5. Nf3 {[%clk 0:03:01]}  Nc6 {[%clk 0:02:59]} 6. Bd3 {[%clk 0:02:58]}  Bd7 {[%clk 0:02:58]} 7. dxc5 {[%clk 0:02:58]}  Bxc5 {[%clk 0:02:57]} 8. O-O {[%clk 0:02:58]}  Qc7 {[%clk 0:02:55]} 9. b4 {[%clk 0:02:57]}  Bb6 {[%clk 0:02:55]} 10. Re1 {[%clk 0:02:55]}  Nge7 {[%clk 0:02:54]} 11. a4 {[%clk 0:02:55]}  a5 {[%clk 0:02:52]} 12. b5 {[%clk 0:02:55]}  Na7 {[%clk 0:02:53]} 13. Ba3 {[%clk 0:02:54]}  Bc5 {[%clk 0:02:53]} 14. Bxc5 {[%clk 0:02:53]}  Qxc5 {[%clk 0:02:53]} 15. Nd4 {[%clk 0:02:50]}  Nac8 {[%clk 0:02:18]} 16. Qg4 {[%clk 0:02:43]}  Ng6 {[%clk 0:02:05]} 17. h4 {[%clk 0:02:42]}  Kf8 {[%clk 0:01:04]} 18. h5 {[%clk 0:02:41]}  Nge7 {[%clk 0:01:04]} 19. Ra2 {[%clk 0:02:36]}  Ng8 {[%clk 0:00:59]} 20. f4 {[%clk 0:02:19]}  Nh6 {[%clk 0:00:57]} 21. Qh4 {[%clk 0:02:11]}  Ne7 {[%clk 0:00:55]} 22. g4 {[%clk 0:02:10]}  Rc8 {[%clk 0:00:46]} 23. Rf2 {[%clk 0:02:10]}  Qb6 {[%clk 0:00:27]} 24. Nb3 {[%clk 0:01:42]}  Qd8 {[%clk 0:00:11]} 25. Kf1 {[%clk 0:01:40]}  b6 {[%clk 0:00:10]} 26. Nd4 {[%clk 0:01:38]}  Neg8 {[%clk 0:00:09]} 27. Qg3 {[%clk 0:01:35]}  Ne7 {[%clk 0:00:09]} 28. f5 {[%clk 0:01:30]}  Ke8 {[%clk 0:00:08]} 29. f6 {[%clk 0:01:19]}  gxf6 {[%clk 0:00:07]} 30. exf6 {[%clk 0:01:20]}  Qc7 {[%clk 0:00:04]} 31. Qxc7 {[%clk 0:01:17]}  Rxc7 {[%clk 0:00:05]} 32. fxe7 {[%clk 0:01:18]}  Nxg4 {[%clk 0:00:05]} 33. Rg2 {[%clk 0:01:10]}  e5 {[%clk 0:00:06]} 34. Nf5 {[%clk 0:01:01]}  Bxf5 {[%clk 0:00:05]} 35. Bxf5 {[%clk 0:01:01]}  Nh6 {[%clk 0:00:06]} 36. Bc2 {[%clk 0:00:56]}  Rxe7 {[%clk 0:00:06]} 37. Bb3 {[%clk 0:00:56]}  d4 {[%clk 0:00:04]} 38. cxd4 {[%clk 0:00:55]}  exd4 {[%clk 0:00:05]} 39. Rge2 {[%clk 0:00:55]}  Rxe2 {[%clk 0:00:05]} 40. Rxe2+ {[%clk 0:00:56]}  Kd7 {[%clk 0:00:05]} 41. Rd2 {[%clk 0:00:56]}  Nf5 {[%clk 0:00:05]} 42. Bc2 {[%clk 0:00:51]}  Ne3+ {[%clk 0:00:05]} 43. Ke2 {[%clk 0:00:51]}  Ke6 {[%clk 0:00:04]} 44. Bb3+ {[%clk 0:00:49]}  Ke5 {[%clk 0:00:04]} 45. Na3 {[%clk 0:00:48]}  Rc8 {[%clk 0:00:04]} 46. Nc2 {[%clk 0:00:45]}  Rc3 {[%clk 0:00:03]} 47. Nxd4 {[%clk 0:00:40]}  Ng4 {[%clk 0:00:03]} 48. Bxf7 {[%clk 0:00:38]}  Re3+ {[%clk 0:00:03]} 49. Kd1 {[%clk 0:00:37]}  Kf4 {[%clk 0:00:02]} 50. Ne6+ {[%clk 0:00:30]}  Kg3 {[%clk 0:00:02]} 51. Ng5 {[%clk 0:00:28]}  Ne5 {[%clk 0:00:02]} 52. Bd5 {[%clk 0:00:26]}  Kh4 {[%clk 0:00:03]} 53. Rh2+ {[%clk 0:00:22]}  Kxg5 {[%clk 0:00:03]} 54. Bg8 {[%clk 0:00:21]}  Ng4 {[%clk 0:00:03]} 55. Rd2 {[%clk 0:00:16]}  Ra3 {[%clk 0:00:03]} 56. Rd5+ {[%clk 0:00:16]}  Kf4 {[%clk 0:00:02]} 57. Bxh7 {[%clk 0:00:16]}  Ne3+ {[%clk 0:00:02]} 58. Ke2 {[%clk 0:00:16]}  Nxd5 {[%clk 0:00:03]} 59. Bg8 {[%clk 0:00:16]}  Nf6 {[%clk 0:00:03]} 60. h6 {[%clk 0:00:15]}  Rh3 {[%clk 0:00:01]} 61. h7 {[%clk 0:00:12]}  Nxh7 {[%clk 0:00:01]} 62. Bd5 {[%clk 0:00:12]}  Nf6 {[%clk 0:00:02]} 63. Bc6 {[%clk 0:00:13]}  Rh2+ {[%clk 0:00:02]} 64. Kd3 {[%clk 0:00:12]}  Ke5 {[%clk 0:00:03]} 65. Kc3 {[%clk 0:00:13]}  Kd6 {[%clk 0:00:04]} 66. Kd4 {[%clk 0:00:13]}  Nd7 {[%clk 0:00:05]} 67. Ke4 {[%clk 0:00:14]}  Nc5+ {[%clk 0:00:05]} 68. Kf5 {[%clk 0:00:14]}  Rb2 {[%clk 0:00:06]} 69. Kf6 {[%clk 0:00:15]}  Rb4 {[%clk 0:00:06]} 70. Kf7 {[%clk 0:00:16]}  Nxa4 {[%clk 0:00:07]} 71. Ke8 {[%clk 0:00:17]}  Nc5 {[%clk 0:00:07]} 72. Kd8 {[%clk 0:00:18]}  a4 {[%clk 0:00:08]} 73. Kc8 {[%clk 0:00:19]}  a3 {[%clk 0:00:09]} 74. Kb8 {[%clk 0:00:19]}  a2 {[%clk 0:00:09]} 75. Bd5 {[%clk 0:00:18]}  a1=Q {[%clk 0:00:08]} 76. Bg2 {[%clk 0:00:12]}  Qh8+ {[%clk 0:00:08]} 77. Ka7 {[%clk 0:00:12]}  Ra4+ {[%clk 0:00:07]} 78. Kxb6 {[%clk 0:00:11]}  Qd8# {[%clk 0:00:07]} 0-1


[Site "https://www.chess.com"]

[Event "Titled Tuesday Blitz June 21 Late 2022"]
[White "Melikyan, Gnel"]
[Black "Tymrakiewicz, Rafal"]
[WhiteFideId "54109990"]
[BlackFideId "1108832"]
[WhiteElo "1772"]
[BlackElo "2205"]
[Result "1/2-1/2"]
[Round "03"]
[TimeControl "180+1"]
[Date "2022.06.22"]
[WhiteClock "0:00:28"]
[BlackClock "0:00:06"]

1. e4 {[%clk 0:03:00]}  Nf6 {[%clk 0:02:51]} 2. e5 {[%clk 0:03:00]}  Nd5 {[%clk 0:02:51]} 3. Nc3 {[%clk 0:03:00]}  Nxc3 {[%clk 0:02:51]} 4. bxc3 {[%clk 0:03:01]}  d5 {[%clk 0:02:52]} 5. f4 {[%clk 0:03:02]}  c5 {[%clk 0:02:52]} 6. d4 {[%clk 0:03:02]}  Nc6 {[%clk 0:02:52]} 7. Nf3 {[%clk 0:03:02]}  Bg4 {[%clk 0:02:52]} 8. Rb1 {[%clk 0:03:02]}  Rb8 {[%clk 0:02:51]} 9. Be3 {[%clk 0:02:56]}  Qa5 {[%clk 0:02:50]} 10. Bb5 {[%clk 0:02:44]}  Qc7 {[%clk 0:02:30]} 11. O-O {[%clk 0:02:41]}  e6 {[%clk 0:02:29]} 12. dxc5 {[%clk 0:02:28]}  Be7 {[%clk 0:02:19]} 13. Bxc6+ {[%clk 0:02:19]}  bxc6 {[%clk 0:02:08]} 14. Rxb8+ {[%clk 0:02:16]}  Qxb8 {[%clk 0:02:08]} 15. Qb1 {[%clk 0:02:15]}  Kd7 {[%clk 0:01:58]} 16. Qb3 {[%clk 0:02:09]}  Bxf3 {[%clk 0:01:45]} 17. gxf3 {[%clk 0:02:06]}  Qb5 {[%clk 0:01:38]} 18. a4 {[%clk 0:01:57]}  Qa5 {[%clk 0:01:03]} 19. Rb1 {[%clk 0:01:54]}  Rc8 {[%clk 0:01:00]} 20. Qb4 {[%clk 0:01:47]}  Qa6 {[%clk 0:00:51]} 21. Qb7+ {[%clk 0:01:17]}  Qxb7 {[%clk 0:00:50]} 22. Rxb7+ {[%clk 0:01:18]}  Rc7 {[%clk 0:00:50]} 23. Rb4 {[%clk 0:01:16]}  Kc8 {[%clk 0:00:37]} 24. Kf2 {[%clk 0:01:15]}  Rb7 {[%clk 0:00:37]} 25. Ke2 {[%clk 0:01:10]}  Bd8 {[%clk 0:00:30]} 26. Kd3 {[%clk 0:01:07]}  Ba5 {[%clk 0:00:30]} 27. Rxb7 {[%clk 0:01:07]}  Kxb7 {[%clk 0:00:31]} 28. c4 {[%clk 0:01:06]}  dxc4+ {[%clk 0:00:12]} 29. Kxc4 {[%clk 0:01:05]}  Be1 {[%clk 0:00:13]} 30. c3 {[%clk 0:00:57]}  Ka6 {[%clk 0:00:12]} 31. Kb4 {[%clk 0:00:57]}  Bh4 {[%clk 0:00:10]} 32. Bd2 {[%clk 0:00:56]}  Bd8 {[%clk 0:00:09]} 33. Kb3 {[%clk 0:00:54]}  Ba5 {[%clk 0:00:09]} 34. Kc4 {[%clk 0:00:53]}  Bc7 {[%clk 0:00:09]} 35. Kb3 {[%clk 0:00:50]}  Ka5 {[%clk 0:00:09]} 36. h4 {[%clk 0:00:48]}  h5 {[%clk 0:00:08]} 37. Be1 {[%clk 0:00:46]}  Bd8 {[%clk 0:00:08]} 38. c4+ {[%clk 0:00:42]}  Ka6 {[%clk 0:00:06]} 39. Kc2 {[%clk 0:00:42]}  Ba5 {[%clk 0:00:05]} 40. Bxa5 {[%clk 0:00:37]}  Kxa5 {[%clk 0:00:05]} 41. Kb3 {[%clk 0:00:37]}  Ka6 {[%clk 0:00:05]} 42. Kb4 {[%clk 0:00:38]}  Kb7 {[%clk 0:00:05]} 43. Ka5 {[%clk 0:00:38]}  Kc7 {[%clk 0:00:04]} 44. Ka6 {[%clk 0:00:38]}  Kb8 {[%clk 0:00:05]} 45. Ka5 {[%clk 0:00:28]}  Kb7 {[%clk 0:00:05]} 46. Kb4 {[%clk 0:00:28]}  Ka6 {[%clk 0:00:05]} 47. Kc3 {[%clk 0:00:28]}  Ka5 {[%clk 0:00:06]} 48. Kb3 {[%clk 0:00:28]}  Ka6 {[%clk 0:00:06]} 49. Ka3 {[%clk 0:00:28]}  Kb7 {[%clk 0:00:06]} 50. Kb3 {[%clk 0:00:28]}  Ka6 {[%clk 0:00:06]} 1/2-1/2


[Site "https://www.chess.com"]

[Event "Titled Tuesday Blitz June 21 Late 2022"]
[White "Mendonca, Leon Luke"]
[Black "Grischuk, Alexander"]
[WhiteFideId "35028561"]
[BlackFideId "4126025"]
[WhiteElo "2152"]
[BlackElo "2762"]
[Result "0-1"]
[Round "03"]
[TimeControl "180+1"]
[Date "2022.06.21"]
[WhiteClock "0:00:03"]
[BlackClock "0:00:39"]

1. Nf3 {[%clk 0:03:00]}  d5 {[%clk 0:02:58]} 2. e3 {[%clk 0:02:59]}  c5 {[%clk 0:02:58]} 3. c4 {[%clk 0:02:58]}  d4 {[%clk 0:02:58]} 4. exd4 {[%clk 0:02:58]}  cxd4 {[%clk 0:02:58]} 5. d3 {[%clk 0:02:59]}  Nc6 {[%clk 0:02:58]} 6. g3 {[%clk 0:03:00]}  e5 {[%clk 0:02:58]} 7. Bg2 {[%clk 0:03:00]}  Bd6 {[%clk 0:02:46]} 8. O-O {[%clk 0:02:58]}  Nge7 {[%clk 0:02:46]} 9. a3 {[%clk 0:02:49]}  a5 {[%clk 0:02:46]} 10. Nbd2 {[%clk 0:02:47]}  O-O {[%clk 0:02:46]} 11. Re1 {[%clk 0:02:39]}  f6 {[%clk 0:02:39]} 12. Rb1 {[%clk 0:02:34]}  a4 {[%clk 0:02:35]} 13. b4 {[%clk 0:02:09]}  axb3 {[%clk 0:02:35]} 14. Rxb3 {[%clk 0:02:08]}  Kh8 {[%clk 0:02:34]} 15. Qc2 {[%clk 0:02:06]}  b6 {[%clk 0:02:05]} 16. Ne4 {[%clk 0:01:48]}  Bc7 {[%clk 0:02:05]} 17. c5 {[%clk 0:01:42]}  Be6 {[%clk 0:02:05]} 18. Rb1 {[%clk 0:01:27]}  Bd5 {[%clk 0:02:05]} 19. cxb6 {[%clk 0:00:53]}  Bxb6 {[%clk 0:02:06]} 20. Nfd2 {[%clk 0:00:54]}  f5 {[%clk 0:01:46]} 21. Ng5 {[%clk 0:00:49]}  Ba5 {[%clk 0:01:45]} 22. Re2 {[%clk 0:00:24]}  Bxg2 {[%clk 0:01:44]} 23. Kxg2 {[%clk 0:00:24]}  Qd5+ {[%clk 0:01:44]} 24. Ngf3 {[%clk 0:00:24]}  Bxd2 {[%clk 0:01:28]} 25. Bxd2 {[%clk 0:00:12]}  Rxa3 {[%clk 0:01:24]} 26. Qc4 {[%clk 0:00:06]}  Qxc4 {[%clk 0:01:17]} 27. dxc4 {[%clk 0:00:07]}  e4 {[%clk 0:01:16]} 28. Ng5 {[%clk 0:00:08]}  Ra2 {[%clk 0:01:13]} 29. Rd1 {[%clk 0:00:05]}  h6 {[%clk 0:00:41]} 30. Ne6 {[%clk 0:00:05]}  Rf6 {[%clk 0:00:42]} 31. Nf4 {[%clk 0:00:03]}  g5 {[%clk 0:00:39]} 0-1


[Site "https://www.chess.com"]

[Event "Titled Tuesday Blitz June 21 Late 2022"]
[White "Mikhalsky, Vladimir"]
[Black "Arabidze, Meri"]
[WhiteFideId "14144352"]
[BlackFideId "13604040"]
[WhiteElo "2301"]
[BlackElo "2335"]
[Result "0-1"]
[Round "03"]
[TimeControl "180+1"]
[Date "2022.06.22"]
[WhiteClock "0:00:16"]
[BlackClock "0:00:26"]

1. c4 {[%clk 0:02:59]}  f5 {[%clk 0:02:58]} 2. b3 {[%clk 0:02:58]}  Nf6 {[%clk 0:02:58]} 3. Bb2 {[%clk 0:02:58]}  g6 {[%clk 0:02:55]} 4. Bxf6 {[%clk 0:02:58]}  exf6 {[%clk 0:02:56]} 5. Nc3 {[%clk 0:02:57]}  Bd6 {[%clk 0:02:43]} 6. Nf3 {[%clk 0:02:54]}  O-O {[%clk 0:02:40]} 7. Qc2 {[%clk 0:02:50]}  b6 {[%clk 0:02:39]} 8. h4 {[%clk 0:02:43]}  h5 {[%clk 0:02:37]} 9. e4 {[%clk 0:02:35]}  Re8 {[%clk 0:02:14]} 10. O-O-O {[%clk 0:02:33]}  fxe4 {[%clk 0:02:07]} 11. Nxe4 {[%clk 0:02:32]}  Ba3+ {[%clk 0:02:07]} 12. Kb1 {[%clk 0:02:32]}  f5 {[%clk 0:02:07]} 13. Nc3 {[%clk 0:02:22]}  Bb7 {[%clk 0:02:03]} 14. Nb5 {[%clk 0:02:19]}  Bf8 {[%clk 0:02:02]} 15. d4 {[%clk 0:02:15]}  Na6 {[%clk 0:01:40]} 16. Rh3 {[%clk 0:01:48]}  Be4 {[%clk 0:01:33]} 17. Bd3 {[%clk 0:01:47]}  Nb4 {[%clk 0:01:33]} 18. Qc3 {[%clk 0:01:39]}  Nxd3 {[%clk 0:01:29]} 19. Rxd3 {[%clk 0:01:39]}  a6 {[%clk 0:01:28]} 20. Rg3 {[%clk 0:01:37]}  axb5 {[%clk 0:00:50]} 21. Rxg6+ {[%clk 0:01:36]}  Bg7 {[%clk 0:00:45]} 22. cxb5 {[%clk 0:01:09]}  Qe7 {[%clk 0:00:38]} 23. Nd2 {[%clk 0:00:50]}  Bxd3+ {[%clk 0:00:37]} 24. Qxd3 {[%clk 0:00:50]}  Qe2 {[%clk 0:00:32]} 25. Qc3 {[%clk 0:00:42]}  Qd1+ {[%clk 0:00:30]} 26. Kb2 {[%clk 0:00:40]}  Re2 {[%clk 0:00:29]} 27. Qc4+ {[%clk 0:00:16]}  Kh7 {[%clk 0:00:26]} 0-1


[Site "https://www.chess.com"]

[Event "Titled Tuesday Blitz June 21 Late 2022"]
[White "Mortazavi, Ali"]
[Black "Alexiadis, Hristos"]
[WhiteFideId "401323"]
[BlackFideId "4249623"]
[WhiteElo "2339"]
[BlackElo "2416"]
[Result "0-1"]
[Round "03"]
[TimeControl "180+1"]
[Date "2022.06.22"]
[WhiteClock "0:01:14"]
[BlackClock "0:02:02"]

1. Nf3 {[%clk 0:02:53]}  Nf6 {[%clk 0:02:59]} 2. g3 {[%clk 0:02:54]}  d5 {[%clk 0:03:00]} 3. Bg2 {[%clk 0:02:55]}  c6 {[%clk 0:03:00]} 4. O-O {[%clk 0:02:56]}  Bg4 {[%clk 0:03:00]} 5. d3 {[%clk 0:02:56]}  Nbd7 {[%clk 0:03:01]} 6. c4 {[%clk 0:02:56]}  dxc4 {[%clk 0:02:59]} 7. dxc4 {[%clk 0:02:52]}  e5 {[%clk 0:02:59]} 8. Nc3 {[%clk 0:02:52]}  Be7 {[%clk 0:03:00]} 9. Qc2 {[%clk 0:02:51]}  O-O {[%clk 0:02:59]} 10. h3 {[%clk 0:02:51]}  Bh5 {[%clk 0:02:59]} 11. Nh4 {[%clk 0:02:52]}  Qc7 {[%clk 0:02:57]} 12. b3 {[%clk 0:02:51]}  Nc5 {[%clk 0:02:56]} 13. Nf5 {[%clk 0:02:48]}  Ne6 {[%clk 0:02:56]} 14. Nxe7+ {[%clk 0:02:48]}  Qxe7 {[%clk 0:02:57]} 15. e3 {[%clk 0:02:45]}  Rae8 {[%clk 0:02:52]} 16. Bb2 {[%clk 0:02:45]}  Ng5 {[%clk 0:02:48]} 17. g4 {[%clk 0:02:40]}  Bg6 {[%clk 0:02:48]} 18. Qe2 {[%clk 0:02:40]}  e4 {[%clk 0:02:49]} 19. h4 {[%clk 0:02:29]}  Nf3+ {[%clk 0:02:46]} 20. Bxf3 {[%clk 0:02:29]}  exf3 {[%clk 0:02:47]} 21. Qxf3 {[%clk 0:02:30]}  h5 {[%clk 0:02:48]} 22. g5 {[%clk 0:02:27]}  Ne4 {[%clk 0:02:48]} 23. Rad1 {[%clk 0:02:18]}  Qe6 {[%clk 0:02:46]} 24. Nxe4 {[%clk 0:02:08]}  Bxe4 {[%clk 0:02:47]} 25. Qg3 {[%clk 0:02:08]}  Qg6 {[%clk 0:02:40]} 26. Rd6 {[%clk 0:02:02]}  Re6 {[%clk 0:02:39]} 27. Rfd1 {[%clk 0:02:02]}  Rfe8 {[%clk 0:02:36]} 28. Qf4 {[%clk 0:01:48]}  Bf5 {[%clk 0:02:18]} 29. Kh2 {[%clk 0:01:32]}  Bg4 {[%clk 0:02:16]} 30. f3 {[%clk 0:01:28]}  Rxd6 {[%clk 0:02:13]} 31. Rxd6 {[%clk 0:01:27]}  Qc2+ {[%clk 0:02:12]} 32. Kg3 {[%clk 0:01:28]}  Qxb2 {[%clk 0:02:07]} 33. fxg4 {[%clk 0:01:28]}  Qe2 {[%clk 0:02:07]} 34. Qf2 {[%clk 0:01:13]}  Rxe3+ {[%clk 0:02:02]} 35. Kg2 {[%clk 0:01:14]}  Qxg4+ {[%clk 0:02:03]} 36. Kf1 {[%clk 0:01:14]}  Rf3 {[%clk 0:02:02]} 0-1


[Site "https://www.chess.com"]

[Event "Titled Tuesday Blitz June 21 Late 2022"]
[White "Moussard, Jules"]
[Black "Roberson, Peter T"]
[WhiteFideId "642908"]
[BlackFideId "412384"]
[WhiteElo "2589"]
[BlackElo "2346"]
[Result "1-0"]
[Round "03"]
[TimeControl "180+1"]
[Date "2022.06.21"]
[WhiteClock "0:00:48"]
[BlackClock "0:00:01"]

1. f4 {[%clk 0:03:00]}  g6 {[%clk 0:02:59]} 2. Nf3 {[%clk 0:03:00]}  Bg7 {[%clk 0:02:59]} 3. e4 {[%clk 0:03:01]}  c5 {[%clk 0:02:59]} 4. c3 {[%clk 0:02:59]}  Nc6 {[%clk 0:03:00]} 5. d4 {[%clk 0:02:59]}  cxd4 {[%clk 0:03:00]} 6. cxd4 {[%clk 0:03:00]}  d5 {[%clk 0:03:01]} 7. e5 {[%clk 0:03:00]}  Nh6 {[%clk 0:03:01]} 8. Nc3 {[%clk 0:03:00]}  Bg4 {[%clk 0:03:01]} 9. Be3 {[%clk 0:02:58]}  Nf5 {[%clk 0:03:01]} 10. Bf2 {[%clk 0:02:41]}  Bxf3 {[%clk 0:03:01]} 11. Qxf3 {[%clk 0:02:42]}  Nfxd4 {[%clk 0:03:00]} 12. Qd1 {[%clk 0:02:38]}  Ne6 {[%clk 0:02:49]} 13. g3 {[%clk 0:02:33]}  d4 {[%clk 0:02:48]} 14. Ne4 {[%clk 0:02:34]}  Qa5+ {[%clk 0:02:37]} 15. Qd2 {[%clk 0:02:34]}  Qxd2+ {[%clk 0:02:26]} 16. Kxd2 {[%clk 0:02:35]}  f6 {[%clk 0:02:15]} 17. Bc4 {[%clk 0:02:34]}  Ncd8 {[%clk 0:01:57]} 18. exf6 {[%clk 0:02:30]}  exf6 {[%clk 0:01:57]} 19. Rhe1 {[%clk 0:02:29]}  Kd7 {[%clk 0:01:43]} 20. Rac1 {[%clk 0:02:26]}  a6 {[%clk 0:01:34]} 21. Bd5 {[%clk 0:02:13]}  f5 {[%clk 0:01:28]} 22. Nc5+ {[%clk 0:01:50]}  Nxc5 {[%clk 0:01:28]} 23. Rxc5 {[%clk 0:01:51]}  Rc8 {[%clk 0:01:05]} 24. Rxc8 {[%clk 0:01:26]}  Kxc8 {[%clk 0:01:06]} 25. Kd3 {[%clk 0:01:27]}  Kd7 {[%clk 0:00:56]} 26. Bxd4 {[%clk 0:01:18]}  Bxd4 {[%clk 0:00:57]} 27. Kxd4 {[%clk 0:01:19]}  Re8 {[%clk 0:00:42]} 28. Rxe8 {[%clk 0:01:17]}  Kxe8 {[%clk 0:00:43]} 29. Kc5 {[%clk 0:01:17]}  Kd7 {[%clk 0:00:21]} 30. Kb6 {[%clk 0:01:17]}  Kc8 {[%clk 0:00:18]} 31. b4 {[%clk 0:01:10]}  h6 {[%clk 0:00:16]} 32. h4 {[%clk 0:01:09]}  Kb8 {[%clk 0:00:16]} 33. a4 {[%clk 0:01:07]}  Kc8 {[%clk 0:00:16]} 34. b5 {[%clk 0:01:05]}  axb5 {[%clk 0:00:16]} 35. axb5 {[%clk 0:01:06]}  Kb8 {[%clk 0:00:17]} 36. Bg8 {[%clk 0:01:06]}  Kc8 {[%clk 0:00:12]} 37. Bh7 {[%clk 0:01:06]}  Ne6 {[%clk 0:00:10]} 38. Bxg6 {[%clk 0:01:05]}  Nd4 {[%clk 0:00:11]} 39. Kc5 {[%clk 0:00:55]}  Ne2 {[%clk 0:00:11]} 40. Bxf5+ {[%clk 0:00:55]}  Kc7 {[%clk 0:00:10]} 41. b6+ {[%clk 0:00:55]}  Kb8 {[%clk 0:00:06]} 42. Bg4 {[%clk 0:00:54]}  Nxg3 {[%clk 0:00:07]} 43. Kd4 {[%clk 0:00:55]}  Nf1 {[%clk 0:00:03]} 44. Kd3 {[%clk 0:00:53]}  Nh2 {[%clk 0:00:01]} 45. Be2 {[%clk 0:00:52]}  Kc8 {[%clk 0:00:02]} 46. Kd4 {[%clk 0:00:52]}  Kd7 {[%clk 0:00:02]} 47. Kd5 {[%clk 0:00:52]}  h5 {[%clk 0:00:01]} 48. f5 {[%clk 0:00:48]}  Ke7 {[%clk 0:00:01]} 49. Ke5 {[%clk 0:00:48]}  Kf7 {[%clk 0:00:01]} 50. Bxh5+ {[%clk 0:00:48]}  Kf8 {[%clk 0:00:01]} 51. Be2 {[%clk 0:00:48]}  Kg7 {[%clk 0:00:01]} 52. f6+ {[%clk 0:00:48]}  Kg6 {[%clk 0:00:01]} 53. h5+ {[%clk 0:00:48]}  Kh6 {[%clk 0:00:01]} 54. Ke6 {[%clk 0:00:48]} 1-0


[Site "https://www.chess.com"]

[Event "Titled Tuesday Blitz June 21 Late 2022"]
[White "Muradov, Soltan"]
[Black "Tologon tegin, Semetei"]
[WhiteFideId "14002108"]
[BlackFideId "13800574"]
[WhiteElo "1854"]
[BlackElo "2174"]
[Result "0-1"]
[Round "03"]
[TimeControl "180+1"]
[Date "2022.06.22"]
[WhiteClock "0:00:08"]
[BlackClock "0:01:12"]

1. d4 {[%clk 0:02:58]}  d5 {[%clk 0:02:39]} 2. Nf3 {[%clk 0:02:56]}  e6 {[%clk 0:02:40]} 3. Bg5 {[%clk 0:02:54]}  Nf6 {[%clk 0:02:35]} 4. e3 {[%clk 0:02:54]}  Be7 {[%clk 0:02:35]} 5. Nbd2 {[%clk 0:02:51]}  O-O {[%clk 0:02:35]} 6. Bd3 {[%clk 0:02:46]}  Nbd7 {[%clk 0:02:34]} 7. c4 {[%clk 0:02:38]}  c5 {[%clk 0:02:29]} 8. cxd5 {[%clk 0:02:27]}  Nxd5 {[%clk 0:02:27]} 9. Bxe7 {[%clk 0:02:27]}  Qxe7 {[%clk 0:02:27]} 10. O-O {[%clk 0:02:25]}  cxd4 {[%clk 0:02:24]} 11. Nxd4 {[%clk 0:02:24]}  N7f6 {[%clk 0:02:23]} 12. Rc1 {[%clk 0:02:12]}  e5 {[%clk 0:02:22]} 13. Nf5 {[%clk 0:02:11]}  Bxf5 {[%clk 0:02:21]} 14. Bxf5 {[%clk 0:02:12]}  Rfd8 {[%clk 0:02:19]} 15. Qb3 {[%clk 0:02:12]}  g6 {[%clk 0:02:12]} 16. Bh3 {[%clk 0:02:06]}  Nf4 {[%clk 0:01:50]} 17. exf4 {[%clk 0:02:02]}  Rxd2 {[%clk 0:01:48]} 18. fxe5 {[%clk 0:01:22]}  Qxe5 {[%clk 0:01:48]} 19. Qxb7 {[%clk 0:01:23]}  Rad8 {[%clk 0:01:27]} 20. Rc7 {[%clk 0:01:19]}  Rxf2 {[%clk 0:01:16]} 21. Kxf2 {[%clk 0:00:07]}  Ne4+ {[%clk 0:01:13]} 22. Kg1 {[%clk 0:00:06]}  Qd4+ {[%clk 0:01:12]} 23. Kh1 {[%clk 0:00:07]}  Nf2+ {[%clk 0:01:12]} 24. Kg1 {[%clk 0:00:06]}  Nxh3+ {[%clk 0:01:12]} 25. Kh1 {[%clk 0:00:07]}  Qg1+ {[%clk 0:01:11]} 26. Rxg1 {[%clk 0:00:08]}  Nf2# {[%clk 0:01:12]} 0-1


[Site "https://www.chess.com"]